bitfinex-derivatives/quotes_BTCF0:USTF0_20240929
["timestamp","ask_amount","ask_price","bid_price","bid_amount"]
[1727599534933,0.11349424,65624.0,65620.0,0.48224]
[1727599535126,0.11349424,65623.0,65620.0,0.12]
[1727599535321,0.11349424,65622.0,65621.0,0.076176]
[1727599535634,0.12349424,65622.0,65621.0,0.076176]
[1727599540031,0.12449424,65622.0,65621.0,0.076176]
[1727599541236,0.11449424,65622.0,65621.0,0.096176]
[1727599541627,0.076171,65625.0,65622.0,0.076174]
[1727599541829,0.086171,65625.0,65623.0,0.34201711]
[1727599542133,0.086171,65625.0,65624.0,0.23567279]
[1727599543038,0.086171,65625.0,65624.0,0.23621699]
[1727599543238,0.086171,65625.0,65624.0,0.31238899]
[1727599544930,0.086171,65625.0,65624.0,0.41973331]
[1727599545131,0.086171,65625.0,65624.0,0.31338899]
[1727599546645,0.086171,65625.0,65624.0,0.41973331]
[1727599546945,0.086171,65625.0,65624.0,0.42073331]
[1727599547138,0.086171,65625.0,65624.0,0.31438899]
[1727599548046,0.086171,65625.0,65624.0,0.31462081]
[1727599549535,0.19966665,65625.0,65624.0,0.078172]
[1727599550630,0.12349565,65625.0,65624.0,0.078172]
[1727599555638,0.09406707,65625.0,65624.0,0.078172]
[1727599555837,0.12349447,65625.0,65624.0,0.078172]
[1727599556742,0.01,65625.0,65624.0,0.31453377]
[1727599557849,0.01,65625.0,65624.0,0.31370493]
[1727599558639,0.13,65625.0,65624.0,0.31370493]
[1727599560739,0.1611,65625.0,65624.0,0.31370493]
[1727599564348,0.0411,65625.0,65624.0,0.31370493]
[1727599564548,0.1611,65625.0,65624.0,0.31370493]
[1727599564754,0.27459563,65625.0,65624.0,0.078172]
[1727599564958,0.15459563,65625.0,65624.0,0.078172]
[1727599565256,0.27459563,65625.0,65624.0,0.078172]
[1727599567647,0.41178805,65625.0,65624.0,0.078172]
[1727599571048,0.29829242,65625.0,65624.0,0.078172]
[1727599571248,0.41178808,65625.0,65624.0,0.078172]
[1727599571449,0.27459566,65625.0,65624.0,0.078172]
[1727599571758,0.1611,65625.0,65624.0,0.31374293]
[1727599577964,0.13,65625.0,65624.0,0.31374293]
[1727599579768,0.24349561,65625.0,65624.0,0.078172]
[1727599580961,0.21406791,65625.0,65624.0,0.078172]
[1727599581165,0.24349561,65625.0,65624.0,0.078172]
[1727599582165,0.19673431,65625.0,65624.0,0.078172]
[1727599582761,0.31869245,65625.0,65624.0,0.078172]
[1727599583378,0.24349562,65625.0,65624.0,0.078172]
[1727599586373,0.38070055,65625.0,65624.0,0.078172]
[1727599586668,0.07664019,65625.0,65624.0,0.31325426]
[1727599595871,0.07664019,65625.0,65624.0,0.31230869]
[1727599597767,0.06664019,65625.0,65624.0,0.32230869]
[1727599597969,0.3952,65629.0,65628.0,0.076167]
[1727599598266,0.5617,65629.0,65628.0,0.18298305]
[1727599599177,0.2009,65629.0,65628.0,0.18298305]
[1727599599372,0.2009,65629.0,65628.0,0.18398305]
[1727599599882,0.2009,65629.0,65628.0,0.18498305]
[1727599600966,0.2009,65629.0,65628.0,0.18496613]
[1727599601884,0.2009,65629.0,65628.0,0.002]
[1727599601885,0.31439437,65629.0,65628.0,0.002]
[1727599602279,0.31439437,65629.0,65628.0,0.078167]
[1727599603983,0.16349437,65629.0,65628.0,0.098167]
[1727599604183,0.0035,65633.0,65632.0,0.076163]
[1727599604386,0.02942151,65633.0,65632.0,0.436963]
[1727599604682,0.34940632,65633.0,65632.0,0.816963]
[1727599604986,0.18171948,65633.0,65632.0,0.436963]
[1727599605182,0.18161421,65633.0,65632.0,0.436963]
[1727599605375,0.18161421,65633.0,65632.0,0.696963]
[1727599605575,0.1521927,65633.0,65632.0,0.696963]
[1727599605879,0.2721927,65633.0,65632.0,0.696963]
[1727599606084,0.16,65633.0,65632.0,0.437963]
[1727599606376,0.16,65633.0,65632.0,0.3618]
[1727599606575,0.32768684,65633.0,65632.0,0.3618]
[1727599606769,0.16,65633.0,65632.0,0.3618]
[1727599608996,0.16,65633.0,65632.0,0.3628]
[1727599609298,0.20675454,65633.0,65632.0,0.3628]
[1727599609802,0.16,65633.0,65632.0,0.47120612]
[1727599611894,0.16,65633.0,65632.0,0.11040612]
[1727599615901,0.16,65633.0,65632.0,0.11031496]
[1727599616698,0.27347852,65633.0,65632.0,0.002]
[1727599619194,0.27347852,65633.0,65632.0,0.078163]
[1727599620294,0.23617753,65633.0,65632.0,0.078163]
[1727599620592,0.27347861,65633.0,65632.0,0.078163]
[1727599621787,0.076163,65632.0,65629.0,0.3608]
[1727599622091,0.12,65630.0,65629.0,0.3608]
[1727599622294,0.34347861,65630.0,65629.0,0.3608]
[1727599623201,0.34347861,65630.0,65627.0,0.0035]
[1727599623399,0.11347861,65629.0,65625.0,0.07617]
[1727599623608,0.12,65626.0,65625.0,0.07617]
[1727599623905,0.33349009,65626.0,65625.0,0.07617]
[1727599624902,0.33349009,65626.0,65625.0,0.10850766]
[1727599624903,0.12853048,65626.0,65625.0,0.10850766]
[1727599625201,0.12853048,65626.0,65625.0,0.23784566]
[1727599625598,0.12953048,65626.0,65625.0,0.23784566]
[1727599625793,0.08379559,65626.0,65625.0,0.23784566]
[1727599625998,0.20379559,65626.0,65625.0,0.23784566]
[1727599626903,0.20479559,65626.0,65625.0,0.23784566]
[1727599627103,0.20479559,65626.0,65625.0,0.23668906]
[1727599628105,0.28096559,65626.0,65625.0,0.10850766]
[1727599628705,0.28096559,65626.0,65625.0,0.10756548]
[1727599629302,0.28096559,65626.0,65625.0,0.23575906]
[1727599629698,0.28096559,65626.0,65625.0,0.19859989]
[1727599629908,0.59649559,65626.0,65614.0,0.46714432]
[1727599630103,0.12,65620.0,65614.0,0.36224]
[1727599630302,0.21,65620.0,65614.0,0.3608]
[1727599630501,0.12,65616.0,65615.0,0.12863235]
[1727599630707,0.21,65616.0,65615.0,0.53283924]
[1727599632605,0.21,65616.0,65615.0,0.40620689]
[1727599632907,0.286181,65616.0,65615.0,0.40620689]
[1727599635516,0.286181,65616.0,65615.0,0.41020689]
[1727599636011,0.286181,65616.0,65615.0,0.006]
[1727599636198,0.076188,65610.0,65609.0,0.0036]
[1727599636399,0.286188,65610.0,65603.0,0.081236]
[1727599636700,0.286188,65610.0,65603.0,0.079796]
[1727599637208,0.286188,65610.0,65604.0,0.076195]
[1727599637810,0.286188,65610.0,65606.0,0.02382023]
[1727599638607,0.21,65610.0,65608.0,0.076191]
[1727599638807,0.21,65610.0,65609.0,0.008]
[1727599639921,0.21,65610.0,65607.0,0.02328612]
[1727599640322,0.211,65610.0,65608.0,0.011]
[1727599643410,0.211,65610.0,65609.0,0.008]
[1727599644112,0.21,65610.0,65609.0,0.008]
[1727599644318,0.21,65610.0,65609.0,0.01]
[1727599646020,0.286188,65610.0,65609.0,0.01]
[1727599646520,0.286188,65610.0,65609.0,0.018]
[1727599661934,0.286188,65610.0,65609.0,0.25128334]
[1727599661935,0.23281526,65610.0,65609.0,0.25128334]
[1727599663225,0.23281526,65610.0,65609.0,0.10832064]
[1727599663432,0.25187695,65610.0,65609.0,0.00811109]
[1727599664438,0.25187695,65610.0,65609.0,0.01411109]
[1727599665032,0.12,65606.0,65605.0,0.0536872]
[1727599665233,0.12425202,65606.0,65605.0,0.22082818]
[1727599665936,0.11725202,65606.0,65605.0,0.22082818]
[1727599666542,0.11725202,65606.0,65605.0,0.11862879]
[1727599666742,0.11825202,65606.0,65605.0,0.12962879]
[1727599667341,0.11825202,65606.0,65605.0,0.20582279]
[1727599667536,0.11925202,65606.0,65605.0,0.096194]
[1727599674038,0.11925202,65606.0,65605.0,0.15705218]
[1727599676438,0.052,65606.0,65605.0,0.15705218]
[1727599676638,0.172,65606.0,65605.0,0.15705218]
[1727599676833,0.172,65606.0,65605.0,0.21964891]
[1727599677329,0.172,65606.0,65605.0,0.21964955]
[1727599678350,0.171,65606.0,65605.0,0.31221422]
[1727599678530,0.171,65606.0,65605.0,0.31521422]
[1727599679945,0.171,65606.0,65605.0,0.4217199]
[1727599680246,0.171,65606.0,65605.0,0.31521422]
[1727599680546,0.17,65606.0,65605.0,0.30621422]
[1727599680745,0.17,65606.0,65605.0,0.31121422]
[1727599682039,0.17,65606.0,65605.0,0.30921422]
[1727599683142,0.17,65606.0,65605.0,0.30421422]
[1727599685748,0.17,65606.0,65605.0,0.30423878]
[1727599686837,0.17,65606.0,65605.0,0.41074446]
[1727599687038,0.17,65606.0,65605.0,0.30423878]
[1727599690643,0.17,65606.0,65605.0,0.30419066]
[1727599691938,0.04,65606.0,65605.0,0.077194]
[1727599692141,0.16,65606.0,65605.0,0.077194]
[1727599693654,0.16,65606.0,65605.0,0.13804898]
[1727599695450,0.16,65606.0,65605.0,0.077194]
[1727599698944,0.16,65606.0,65605.0,0.13804898]
[1727599699251,0.16,65606.0,65605.0,0.40988525]
[1727599700851,0.079689,65610.0,65608.0,0.076191]
[1727599701045,0.079689,65610.0,65609.0,0.22618557]
[1727599701248,0.03806571,65610.0,65609.0,0.22618557]
[1727599703048,0.04406571,65610.0,65609.0,0.22618557]
[1727599704247,0.04106571,65610.0,65609.0,0.22618557]
[1727599704456,0.04506571,65610.0,65609.0,0.22618557]
[1727599704862,0.05506571,65610.0,65609.0,0.22618557]
[1727599707159,0.05506571,65610.0,65609.0,0.04562882]
[1727599709157,0.076189,65609.0,65606.0,0.06083843]
[1727599709469,0.12,65607.0,65606.0,0.06083843]
[1727599709684,0.14,65607.0,65606.0,0.06083843]
[1727599713765,0.141,65607.0,65606.0,0.06083843]
[1727599714357,0.141,65607.0,65606.0,0.4833139]
[1727599714559,0.141,65607.0,65606.0,0.23097755]
[1727599717066,0.217192,65607.0,65606.0,0.23097755]
[1727599720367,0.217192,65607.0,65606.0,0.48335625]
[1727599721863,0.097192,65607.0,65606.0,0.48335625]
[1727599722068,0.217192,65607.0,65606.0,0.48335625]
[1727599722270,0.217192,65607.0,65606.0,0.33748323]
[1727599724072,0.217192,65607.0,65606.0,0.48284866]
[1727599724474,0.217192,65607.0,65606.0,0.33748323]
[1727599725463,0.217192,65607.0,65606.0,0.48284359]
[1727599725970,0.217192,65607.0,65606.0,0.33748323]
[1727599726166,0.217192,65607.0,65606.0,0.48283246]
[1727599726357,0.217192,65607.0,65606.0,0.33748323]
[1727599729275,0.076194,65605.0,65604.0,0.02709347]
[1727599729573,0.106194,65605.0,65602.0,0.04561903]
[1727599729774,0.106194,65605.0,65602.0,0.08293383]
[1727599730761,0.106194,65605.0,65602.0,0.0373148]
[1727599730971,0.106194,65605.0,65604.0,0.001]
[1727599733270,0.076196,65604.0,65602.0,0.1085118]
[1727599733570,0.076196,65604.0,65602.0,0.1215118]
[1727599733571,0.12,65603.0,65602.0,0.1215118]
[1727599733775,0.15,65603.0,65602.0,0.1165118]
[1727599733976,0.148,65603.0,65602.0,0.1165118]
[1727599734876,0.147,65603.0,65602.0,0.1185118]
[1727599735982,0.147,65603.0,65602.0,0.18046414]
[1727599737187,0.226196,65603.0,65602.0,0.18046414]
[1727599737385,0.18044692,65603.0,65602.0,0.55603123]
[1727599737980,0.18044692,65603.0,65602.0,0.55703123]
[1727599738485,0.19044692,65603.0,65602.0,0.55703123]
[1727599740488,0.19044692,65603.0,65602.0,0.55574885]
[1727599741080,0.19044692,65603.0,65602.0,0.60340415]
[1727599742081,0.13,65603.0,65602.0,0.60340415]
[1727599743687,0.13,65603.0,65602.0,0.49379651]
[1727599744193,0.12,65606.0,65603.0,0.076196]
[1727599744385,0.076195,65605.0,65603.0,0.076196]
[1727599744685,0.086195,65605.0,65603.0,0.076196]
[1727599745283,0.086195,65605.0,65604.0,0.076195]
[1727599747088,0.088195,65605.0,65604.0,0.076195]
[1727599752287,0.0530715,65605.0,65604.0,0.18079216]
[1727599754195,0.02,65605.0,65604.0,0.30512579]
[1727599754409,0.02,65605.0,65604.0,0.44948687]
[1727599755299,0.096195,65605.0,65604.0,0.44948687]
[1727599757390,0.0804468,65605.0,65604.0,0.44948687]
[1727599759297,0.19785732,65605.0,65604.0,0.076195]
[1727599761392,0.31785732,65605.0,65604.0,0.076195]
[1727599767402,0.2004468,65605.0,65604.0,0.44848349]
[1727599769418,0.2004468,65605.0,65604.0,0.44663815]
[1727599775495,0.0804468,65605.0,65604.0,0.44663815]
[1727599775998,0.12,65607.0,65605.0,0.076194]
[1727599776205,0.196193,65607.0,65606.0,0.19479944]
[1727599776499,0.206193,65607.0,65606.0,0.19479944]
[1727599776702,0.206193,65607.0,65606.0,0.10359481]
[1727599777504,0.209193,65607.0,65606.0,0.10359481]
[1727599778101,0.213193,65607.0,65606.0,0.10359481]
[1727599780496,0.214193,65607.0,65606.0,0.10359481]
[1727599781503,0.2468917,65607.0,65605.0,0.076194]
[1727599781802,0.0326987,65606.0,65605.0,0.076194]
[1727599781999,0.0626987,65606.0,65605.0,0.076194]
[1727599782407,0.14744609,65606.0,65605.0,0.076194]
[1727599784429,0.03,65606.0,65605.0,0.076194]
[1727599784714,0.14745473,65606.0,65605.0,0.076194]
[1727599785502,0.15045473,65606.0,65605.0,0.076194]
[1727599786409,0.1544398,65606.0,65605.0,0.076194]
[1727599788714,0.1244398,65606.0,65605.0,0.086194]
[1727599789511,0.13724103,65606.0,65605.0,0.4567056]
[1727599791717,0.13724103,65606.0,65605.0,0.4467056]
[1727599791924,0.14724103,65606.0,65605.0,0.4467056]
[1727599792412,0.13724103,65606.0,65605.0,0.4467056]
[1727599793407,0.13724103,65606.0,65605.0,0.4567056]
[1727599793607,0.13924103,65606.0,65605.0,0.4567056]
[1727599793917,0.14124103,65606.0,65605.0,0.4567056]
[1727599796312,0.14124103,65606.0,65605.0,0.45644]
[1727599796614,0.14124103,65606.0,65605.0,0.086194]
[1727599796615,0.36334846,65606.0,65605.0,0.086194]
[1727599796919,0.39616126,65606.0,65605.0,0.086194]
[1727599797924,0.25892023,65606.0,65605.0,0.086194]
[1727599798125,0.25792023,65606.0,65605.0,0.086194]
[1727599800926,0.25792023,65606.0,65605.0,0.076194]
[1727599801625,0.26792023,65606.0,65605.0,0.076194]
[1727599803131,0.26791349,65606.0,65605.0,0.076194]
[1727599804438,0.12067528,65606.0,65605.0,0.116194]
[1727599804733,0.003,65606.0,65605.0,0.4861359]
[1727599807929,0.003,65606.0,65605.0,0.116194]
[1727599808132,0.013,65606.0,65605.0,0.48594019]
[1727599808922,0.012,65606.0,65605.0,0.48594019]
[1727599809217,0.012,65606.0,65605.0,0.48694019]
[1727599810433,0.011,65606.0,65605.0,0.48694019]
[1727599813935,0.12,65607.0,65606.0,0.076193]
[1727599814232,0.13,65607.0,65606.0,0.55234088]
[1727599815631,0.132,65607.0,65606.0,0.55234088]
[1727599816623,0.133,65607.0,65606.0,0.55234088]
[1727599817534,1.19028,65607.0,65600.0,0.10640169]
[1727599817832,0.4808,65601.0,65595.0,0.0036]
[1727599818027,0.4808,65601.0,65591.0,0.0036]
[1727599818028,0.12,65598.0,65591.0,0.0036]
[1727599818229,0.12,65594.0,65593.0,0.076208]
[1727599819532,0.1169,65600.0,65599.0,0.076201]
[1727599819737,0.37133063,65600.0,65599.0,0.072701]
[1727599819937,0.36133063,65600.0,65599.0,0.072701]
[1727599821021,0.36233063,65600.0,65599.0,0.079701]
[1727599821423,0.49932233,65600.0,65599.0,0.079701]
[1727599821835,0.49932233,65600.0,65599.0,0.078701]
[1727599822623,0.50932233,65600.0,65599.0,0.078701]
[1727599824544,0.32510057,65600.0,65599.0,0.078701]
[1727599825431,0.32510057,65600.0,65599.0,0.082701]
[1727599826737,0.2479,65600.0,65599.0,0.082701]
[1727599832542,0.2479,65600.0,65599.0,0.18354047]
[1727599833643,0.2479,65600.0,65599.0,0.44354047]
[1727599833849,0.2479,65600.0,65599.0,0.51944572]
[1727599834746,0.1279,65600.0,65599.0,0.342701]
[1727599835436,0.1279,65600.0,65599.0,0.37016946]
[1727599838344,0.0487,65600.0,65599.0,0.37016946]
[1727599839840,0.0487,65600.0,65599.0,0.342701]
[1727599840546,0.1687,65600.0,65599.0,0.342701]
[1727599842049,0.1687,65600.0,65599.0,0.44354211]
[1727599842648,0.1687,65600.0,65599.0,0.53464802]
[1727599844461,0.1687,65600.0,65599.0,0.44354211]
[1727599846556,0.1687,65600.0,65599.0,0.56390573]
[1727599846757,0.1687,65600.0,65599.0,0.56404424]
[1727599848859,0.1687,65600.0,65599.0,0.56204424]
[1727599849747,0.2520702,65600.0,65599.0,0.340701]
[1727599849947,0.2937553,65600.0,65599.0,0.340701]
[1727599850963,0.42998885,65600.0,65599.0,0.338701]
[1727599852552,0.30998885,65600.0,65599.0,0.338701]
[1727599852758,0.27228885,65600.0,65599.0,0.338701]
[1727599854856,0.1350553,65600.0,65599.0,0.338701]
[1727599856452,0.13492246,65600.0,65599.0,0.338701]
[1727599856845,0.01,65600.0,65599.0,0.56025815]
[1727599861061,0.01,65600.0,65599.0,0.56021447]
[1727599863967,0.01,65600.0,65599.0,0.30021447]
[1727599870154,0.01,65600.0,65599.0,0.30302706]
[1727599872079,0.13098254,65600.0,65599.0,0.078701]
[1727599872364,0.20718254,65600.0,65599.0,0.078701]
[1727599874769,0.13098254,65600.0,65599.0,0.078701]
[1727599874965,0.25098254,65600.0,65599.0,0.078701]
[1727599875272,0.32716424,65600.0,65599.0,0.006]
[1727599877769,0.32716424,65600.0,65599.0,0.082201]
[1727599880077,0.2062,65600.0,65599.0,0.30658583]
[1727599882578,0.2062,65600.0,65599.0,0.23038483]
[1727599886971,0.28034277,65600.0,65599.0,0.006]
[1727599888471,0.32712253,65600.0,65599.0,0.006]
[1727599889070,0.46434583,65600.0,65599.0,0.006]
[1727599889276,0.32712253,65600.0,65599.0,0.006]
[1727599889584,0.32706995,65600.0,65599.0,0.006]
[1727599890175,0.46429325,65600.0,65599.0,0.006]
[1727599890372,0.32706995,65600.0,65599.0,0.006]
[1727599893279,0.46427151,65600.0,65599.0,0.006]
[1727599893482,0.32706995,65600.0,65599.0,0.006]
[1727599894073,0.32706995,65600.0,65599.0,0.10860923]
[1727599894074,0.2062,65600.0,65599.0,0.10860923]
[1727599894985,0.2062,65600.0,65599.0,0.10860533]
[1727599899681,0.2062,65600.0,65599.0,0.10855035]
[1727599904590,0.2062,65600.0,65599.0,0.1085193]
[1727599909192,0.49447301,65600.0,65599.0,0.006]
[1727599909587,0.49447495,65600.0,65599.0,0.006]
[1727599914597,0.37461139,65600.0,65599.0,0.006]
[1727599914801,0.29841139,65600.0,65599.0,0.202201]
[1727599914997,0.1306893,65600.0,65599.0,0.202201]
[1727599915495,0.1306893,65600.0,65599.0,0.082201]
[1727599916697,0.4914585,65600.0,65599.0,0.082201]
[1727599917205,0.3708,65600.0,65599.0,0.27602349]
[1727599917404,0.01,65600.0,65599.0,0.27602349]
[1727599917604,0.3708,65600.0,65599.0,0.27602349]
[1727599917807,0.01,65600.0,65599.0,0.27602349]
[1727599918110,0.3708,65600.0,65599.0,0.27602349]
[1727599918496,0.01,65600.0,65599.0,0.27602349]
[1727599918702,0.3708,65600.0,65599.0,0.27602349]
[1727599919100,0.01,65600.0,65599.0,0.27602349]
[1727599919301,0.3708,65600.0,65599.0,0.27602349]
[1727599922420,0.4908,65600.0,65599.0,0.27602349]
[1727599922910,0.4908,65600.0,65599.0,0.1735291]
[1727599923108,0.4908,65600.0,65599.0,0.27604535]
[1727599924209,0.6115362,65600.0,65599.0,0.082201]
[1727599924911,0.74876554,65600.0,65599.0,0.082201]
[1727599925106,0.6115362,65600.0,65599.0,0.082201]
[1727599927912,0.61155933,65600.0,65599.0,0.082201]
[1727599928101,0.61155933,65600.0,65599.0,0.006]
[1727599928499,0.25075933,65600.0,65599.0,0.006]
[1727599928703,0.61155933,65600.0,65599.0,0.006]
[1727599929714,0.32695933,65600.0,65599.0,0.006]
[1727599930010,0.68775933,65600.0,65599.0,0.006]
[1727599930612,0.32695933,65600.0,65599.0,0.006]
[1727599930912,0.68775933,65600.0,65599.0,0.006]
[1727599931713,0.32695933,65600.0,65599.0,0.006]
[1727599931915,0.68775933,65600.0,65599.0,0.006]
[1727599932107,0.567,65600.0,65599.0,0.1998137]
[1727599933417,0.2062,65600.0,65599.0,0.1998137]
[1727599934220,0.567,65600.0,65599.0,0.1998137]
[1727599934835,0.2062,65600.0,65599.0,0.1998137]
[1727599935131,0.567,65600.0,65599.0,0.1998137]
[1727599936827,0.567,65600.0,65599.0,0.1084856]
[1727599939139,0.76289064,65600.0,65599.0,0.006]
[1727599940042,0.64090396,65600.0,65599.0,0.006]
[1727599940241,0.40209064,65600.0,65599.0,0.006]
[1727599940437,0.76289064,65600.0,65599.0,0.006]
[1727599942135,0.56470396,65600.0,65599.0,0.006]
[1727599942334,0.61148518,65600.0,65599.0,0.006]
[1727599942532,0.61148518,65600.0,65599.0,0.082201]
[1727599942741,0.61155685,65600.0,65599.0,0.006]
[1727599943643,0.61155685,65600.0,65599.0,0.082201]
[1727599947142,0.4908,65600.0,65599.0,0.18471319]
[1727599947735,0.4908,65600.0,65599.0,0.18471389]
[1727599947949,0.4908,65600.0,65599.0,0.2119924]
[1727599956936,0.4908,65600.0,65599.0,0.30335378]
[1727599958347,0.13,65600.0,65599.0,0.30335378]
[1727599958549,0.4908,65600.0,65599.0,0.30335378]
[1727599958953,0.4908,65600.0,65599.0,0.27607527]
[1727599962149,0.61158622,65600.0,65599.0,0.082201]
[1727599962443,0.7640358,65600.0,65599.0,0.082201]
[1727599962642,0.61158622,65600.0,65599.0,0.082201]
[1727599963950,0.61158622,65600.0,65599.0,0.006]
[1727599964655,0.84029647,65600.0,65599.0,0.006]
[1727599965358,0.85550831,65600.0,65599.0,0.006]
[1727599965855,0.49470831,65600.0,65599.0,0.006]
[1727599966045,0.85550831,65600.0,65599.0,0.006]
[1727599966452,0.82504535,65600.0,65599.0,0.006]
[1727599967658,0.82506693,65600.0,65599.0,0.006]
[1727599967958,0.6878078,65600.0,65599.0,0.006]
[1727599969149,0.567,65600.0,65599.0,0.10855623]
[1727599969756,0.2062,65600.0,65599.0,0.10855623]
[1727599969952,0.567,65600.0,65599.0,0.10855623]
[1727599976863,0.2062,65600.0,65599.0,0.10855623]
[1727599977358,0.68761184,65600.0,65599.0,0.006]
[1727599981267,0.68764663,65600.0,65599.0,0.006]
[1727599983168,0.8553639,65600.0,65599.0,0.006]
[1727599984266,0.8553639,65600.0,65599.0,0.10848166]
[1727599984267,0.567,65600.0,65599.0,0.10848166]
[1727599986656,0.447,65600.0,65599.0,0.10848166]
[1727599986867,0.567,65600.0,65599.0,0.10848166]
[1727599988457,0.567,65600.0,65599.0,0.19984304]
[1727599988764,0.567,65600.0,65599.0,0.10848166]
[1727599989157,0.567,65600.0,65599.0,0.19984304]
[1727599990354,0.2062,65600.0,65599.0,0.19984304]
[1727599990559,0.567,65600.0,65599.0,0.19984304]
[1727599991153,0.567,65600.0,65599.0,0.19983861]
[1727599995666,0.2062,65600.0,65599.0,0.19983861]
[1727599995866,0.567,65600.0,65599.0,0.19983861]
[1727599996570,0.2062,65600.0,65599.0,0.19983861]
[1727599996770,0.567,65600.0,65599.0,0.19983861]
[1727599999365,0.68782855,65600.0,65599.0,0.006]
[1727600000376,0.61162855,65600.0,65599.0,0.006]
[1727600000976,0.77937444,65600.0,65599.0,0.006]
[1727600003773,0.6441166,65600.0,65599.0,0.082201]
[1727600003975,0.48162855,65600.0,65599.0,0.121901]
[1727600005871,0.49187048,65600.0,65599.0,0.121901]
[1727600006583,0.48187048,65600.0,65599.0,0.121901]
[1727600007167,0.61902893,65600.0,65599.0,0.121901]
[1727600007475,0.3608,65600.0,65599.0,0.34593467]
[1727600010379,0.3608,65600.0,65599.0,0.22410793]
[1727600010585,0.3608,65600.0,65599.0,0.34592691]
[1727600010791,0.3608,65600.0,65599.0,0.22411353]
[1727600011083,0.3608,65600.0,65599.0,0.35594695]
[1727600011287,0.3608,65600.0,65599.0,0.23411353]
[1727600012995,0.3608,65600.0,65599.0,0.35594205]
[1727600014382,0.29895132,65603.0,65602.0,0.076198]
[1727600014589,0.29895132,65603.0,65602.0,0.17841053]
[1727600015291,0.49532039,65603.0,65602.0,0.076198]
[1727600015789,0.49632039,65603.0,65602.0,0.076198]
[1727600020187,0.50632039,65603.0,65602.0,0.076198]
[1727600020596,0.5408224,65603.0,65602.0,0.076198]
[1727600020780,0.5063713,65603.0,65602.0,0.076198]
[1727600021294,0.5063713,65603.0,65602.0,0.10301378]
[1727600022393,0.30995132,65603.0,65602.0,0.20520029]
[1727600025291,0.30995132,65603.0,65602.0,0.29647615]
[1727600025799,0.30995132,65603.0,65602.0,0.20520029]
[1727600026198,0.30995132,65603.0,65602.0,0.29647615]
[1727600028309,0.29995132,65603.0,65602.0,0.20520029]
[1727600030405,0.55832233,65603.0,65602.0,0.10301378]
[1727600031305,0.42116388,65603.0,65602.0,0.10301378]
[1727600033903,0.43116388,65603.0,65602.0,0.10301378]
[1727600035597,0.55116388,65603.0,65602.0,0.05771594]
[1727600037505,0.42995132,65603.0,65602.0,0.28227451]
[1727600040312,0.42995132,65603.0,65602.0,0.28271987]
[1727600043803,0.42995132,65603.0,65602.0,0.28271358]
[1727600048818,0.42995132,65603.0,65602.0,0.2558978]
[1727600052517,0.42995132,65603.0,65602.0,0.03090016]
[1727600052518,0.55018614,65603.0,65602.0,0.03090016]
[1727600052823,0.25123482,65603.0,65602.0,0.03090016]
[1727600059030,0.32743082,65603.0,65601.0,0.02738021]
[1727600059320,0.12023482,65602.0,65599.0,0.0762]
[1727600059527,0.27247537,65600.0,65599.0,0.0762]
[1727600059712,0.44271019,65600.0,65599.0,0.0762]
[1727600060625,0.17,65600.0,65599.0,0.30136646]
[1727600062126,0.17,65600.0,65599.0,0.30436646]
[1727600063414,0.17,65600.0,65599.0,0.30536646]
[1727600063616,0.17,65600.0,65599.0,0.33217897]
[1727600065726,0.05,65600.0,65599.0,0.33217897]
[1727600067626,0.12329199,65600.0,65597.0,0.10500307]
[1727600067830,0.12007022,65599.0,65597.0,0.10500307]
[1727600068025,0.12007022,65598.0,65597.0,0.18120607]
[1727600068323,0.14006985,65598.0,65597.0,0.20843853]
[1727600069227,0.14006985,65598.0,65597.0,0.21343853]
[1727600070926,0.14006985,65598.0,65597.0,0.21643853]
[1727600073231,0.13777236,65598.0,65597.0,0.21643853]
[1727600073425,0.13777236,65598.0,65597.0,0.21443853]
[1727600073734,0.13777236,65598.0,65597.0,0.22443853]
[1727600074621,0.11777236,65598.0,65597.0,0.22443853]
[1727600075731,0.076199,65601.0,65599.0,0.076201]
[1727600075932,0.076199,65601.0,65600.0,0.17979529]
[1727600076430,0.086199,65601.0,65600.0,0.17979529]
[1727600078234,0.086199,65601.0,65600.0,0.18179529]
[1727600078733,0.01,65601.0,65600.0,0.18179529]
[1727600079738,0.01,65601.0,65600.0,0.3052837]
[1727600079942,0.01,65601.0,65600.0,0.3152837]
[1727600080130,0.01,65601.0,65600.0,0.3052837]
[1727600082737,0.01,65601.0,65600.0,0.0782]
[1727600082929,0.12790789,65601.0,65600.0,0.0782]
[1727600083132,0.12790798,65601.0,65600.0,0.0782]
[1727600085544,0.16245272,65601.0,65600.0,0.0782]
[1727600085745,0.2803607,65601.0,65600.0,0.0782]
[1727600089733,0.01,65601.0,65600.0,0.30530436]
[1727600091139,0.0036,65604.0,65602.0,0.076197]
[1727600091340,0.0136,65604.0,65603.0,0.10360781]
[1727600091638,0.01,65604.0,65603.0,0.10360781]
[1727600091943,0.01,65604.0,65603.0,0.17980381]
[1727600093037,0.013,65604.0,65603.0,0.17980381]
[1727600093237,0.013,65604.0,65603.0,0.17980451]
[1727600093738,0.012,65604.0,65603.0,0.17980451]
[1727600093938,0.014,65604.0,65603.0,0.17980451]
[1727600096140,0.015,65604.0,65603.0,0.17980451]
[1727600097140,0.015,65604.0,65603.0,0.17983131]
[1727600097733,0.015,65604.0,65596.0,0.33825289]
[1727600097734,0.13291146,65604.0,65596.0,0.33825289]
[1727600097939,0.11791146,65603.0,65598.0,0.12]
[1727600098146,0.11791146,65602.0,65598.0,0.12]
[1727600098350,0.11791111,65601.0,65598.0,0.12]
[1727600098538,0.11791111,65600.0,65599.0,0.076201]
[1727600100550,0.11791111,65600.0,65599.0,0.079201]
[1727600101249,0.11791111,65600.0,65599.0,0.080201]
[1727600101639,0.13791111,65600.0,65599.0,0.080201]
[1727600101835,0.13486016,65600.0,65599.0,0.080201]
[1727600104747,0.076199,65601.0,65600.0,0.0762]
[1727600104748,0.03807159,65601.0,65600.0,0.0762]
[1727600104944,0.05807159,65601.0,65600.0,0.3073554]